[Event "SS Manhem Chess Week 2019 Goteborg Open"]
[Site "Molnlycke kulturhus, Biblioteksgatan 2, Molnlycke, Sweden"]
[Date "2019.08.17"]
[Round "5.10"]
[White "Malmstig, Erik"]
[Black "Torngren, Gustav"]
[Result "0-1"]
[TimeControl "15 minutes + 5 seconds per move from move one (Round 1 - 4) / 90 minutes + 30 seconds per move from move one (Round 5 - 8)"]
[WhiteTitle "FM"]
[WhiteFideId "1702866"]
[BlackFideId "1728970"]
[WhiteElo "2335"]
[BlackElo "2061"]

1. d4 {[%clk 01:29:07]} {[%emt 00:01:48]} e6 {[%clk 01:30:44]} {[%emt
00:00:21]} 2. c4 {[%clk 01:29:19]} {[%emt 00:00:16]} b6 {[%clk 01:30:56]}
{[%emt 00:00:19]} 3. Nc3 {[%clk 01:29:31]} {[%emt 00:00:19]} Bb7 {[%clk
01:30:40]} {[%emt 00:00:46]} 4. a3 {[%clk 01:29:22]} {[%emt 00:00:39]} f5
{[%clk 01:30:22]} {[%emt 00:00:47]} 5. f3 {[%clk 01:27:12]} {[%emt 00:02:40]}
Bd6 {[%clk 01:13:41]} {[%emt 00:17:11]} 6. Be3 {[%clk 01:21:29]} {[%emt
00:06:12]} f4 {[%clk 01:11:09]} {[%emt 00:03:02]} 7. Bf2 {[%clk 01:21:24]}
{[%emt 00:00:35]} Nh6 {[%clk 01:11:22]} {[%emt 00:00:18]} 8. Qd2 {[%clk
01:17:25]} {[%emt 00:04:29]} O-O {[%clk 01:10:24]} {[%emt 00:01:29]} 9. Nh3
{[%clk 01:15:09]} {[%emt 00:02:46]} Qf6 {[%clk 00:57:04]} {[%emt 00:13:50]} 10.
Nb5 {[%clk 01:07:35]} {[%emt 00:08:04]} a5 {[%clk 00:52:55]} {[%emt 00:04:39]}
11. Nxd6 {[%clk 00:58:56]} {[%emt 00:09:09]} cxd6 {[%clk 00:53:08]} {[%emt
00:00:17]} 12. g3 {[%clk 00:49:46]} {[%emt 00:09:41]} fxg3 {[%clk 00:47:29]}
{[%emt 00:06:08]} 13. hxg3 {[%clk 00:49:27]} {[%emt 00:00:50]} Nc6 {[%clk
00:39:30]} {[%emt 00:08:29]} 14. Ng5 {[%clk 00:43:56]} {[%emt 00:06:01]} a4
{[%clk 00:37:58]} {[%emt 00:02:02]} 15. Ne4 {[%emt 00:03:33]} Qe7 {[%clk
00:37:56]} {[%emt 00:00:20]} 16. g4 {[%clk 00:39:33]} {[%emt 00:02:01]} Rfc8
{[%clk 00:29:42]} {[%emt 00:08:45]} 17. Bg3 {[%clk 00:33:45]} {[%emt 00:06:18]}
Nf7 {[%clk 00:29:41]} {[%emt 00:00:31]} 18. Qd3 {[%clk 00:25:51]} {[%emt
00:08:24]} Na5 {[%clk 00:24:30]} {[%emt 00:05:40]} 19. Nd2 {[%clk 00:24:32]}
{[%emt 00:01:50]} g6 {[%clk 00:21:23]} {[%emt 00:03:37]} 20. Bh4 {[%clk
00:22:06]} {[%emt 00:02:56]} Qf8 {[%clk 00:21:34]} {[%emt 00:00:19]} 21. e4
{[%clk 00:15:16]} {[%emt 00:07:20]} g5 {[%clk 00:20:12]} {[%emt 00:01:52]} 22.
Bg3 {[%clk 00:13:52]} {[%emt 00:01:54]} Qg7 {[%clk 00:19:31]} {[%emt 00:01:11]}
23. Be2 {[%clk 00:09:54]} {[%emt 00:04:29]} Ba6 {[%clk 00:19:19]} {[%emt
00:00:42]} 24. Rc1 {[%clk 00:09:41]} {[%emt 00:00:43]} b5 {[%clk 00:15:59]}
{[%emt 00:03:49]} 25. Qc3 {[%clk 00:06:51]} {[%emt 00:03:20]} bxc4 {[%clk
00:14:30]} {[%emt 00:01:59]} 26. Qxa5 {[%clk 00:06:15]} {[%emt 00:01:07]} c3
{[%clk 00:14:32]} {[%emt 00:00:28]} 27. Rxc3 {[%clk 00:05:45]} {[%emt
00:01:00]} Bxe2 {[%clk 00:14:36]} {[%emt 00:00:25]} 28. Kxe2 {[%clk 00:05:09]}
{[%emt 00:01:06]} Rcb8 {[%clk 00:13:32]} {[%emt 00:01:33]} 29. Qc7 {[%clk
00:04:50]} {[%emt 00:00:51]} Qxd4 {[%clk 00:13:34]} {[%emt 00:00:28]} 30. Bf2
{[%clk 00:04:13]} {[%emt 00:01:07]} Qf6 {[%clk 00:13:30]} {[%emt 00:00:34]} 31.
Rb1 {[%clk 00:04:01]} {[%emt 00:00:41]} d5 {[%clk 00:11:45]} {[%emt 00:02:16]}
32. Bg3 {[%clk 00:03:11]} {[%emt 00:01:20]} d4 {[%clk 00:11:42]} {[%emt
00:00:32]} 33. Rc5 {[%clk 00:02:51]} {[%emt 00:00:50]} d6 {[%clk 00:11:21]}
{[%emt 00:00:52]} 34. Bxd6 {[%clk 00:02:23]} {[%emt 00:00:58]} d3+ {[%clk
00:11:27]} {[%emt 00:00:24]} 35. Ke1 {[%clk 00:01:02]} {[%emt 00:01:51]} Qd4
{[%clk 00:11:30]} {[%emt 00:00:27]} 36. Nc4 {[%clk 00:00:44]} {[%emt 00:00:49]}
Qg1+ {[%clk 00:11:45]} {[%emt 00:00:15]} 37. Kd2 {[%clk 00:00:56]} {[%emt
00:00:19]} Qxb1 {[%clk 00:12:11]} {[%emt 00:00:04]} 38. Be7 {[%clk 00:00:37]}
{[%emt 00:00:49]} Qc2+ {[%clk 00:12:18]} {[%emt 00:00:22]} 39. Ke3 {[%clk
00:01:04]} {[%emt 00:00:04]} Qe2+ {[%clk 00:12:35]} {[%emt 00:00:13]} 40. Kd4
{[%clk 00:01:28]} {[%emt 00:00:06]} Qf2+ {[%clk 00:11:50]} {[%emt 00:01:14]} 41.
Ne3 {[%clk 00:01:18]} {[%emt 00:00:40]} d2 {[%clk 00:10:15]} {[%emt 00:02:05]}
42. Kd3 {[%clk 00:01:38]} {[%emt 00:00:10]} Rd8+ {[%clk 00:08:33]} {[%emt
00:02:12]} 43. Bxd8 {[%clk 00:01:17]} {[%emt 00:00:52]} Rxd8+ {[%clk 00:09:01]}
{[%emt 00:00:02]} 44. Qxd8+ {[%clk 00:00:34]} {[%emt 00:01:13]} Nxd8 {[%clk
00:09:27]} {[%emt 00:00:03]} 45. Rc2 {[%clk 00:00:33]} {[%emt 00:00:32]} Qxe3+
{[%clk 00:09:42]} {[%emt 00:00:15]} 46. Kxe3 {[%clk 00:01:00]} {[%emt
00:00:03]} d1=Q {[%clk 00:09:57]} {[%emt 00:00:13]} 47. Rd2 {[%clk 00:01:23]}
{[%emt 00:00:08]} Qe1+ {[%clk 00:10:20]} {[%emt 00:00:08]} 48. Re2 {[%clk
00:01:41]} {[%emt 00:00:12]} Qa5 {[%clk 00:10:38]} {[%emt 00:00:12]} 0-1

[Event "SS Manhem Chess Week 2019 Goteborg Open"]
[Site "Molnlycke kulturhus, Biblioteksgatan 2, Molnlycke, Sweden"]
[Date "2019.08.17"]
[Round "5.11"]
[White "Petersson, Baldur Teodor"]
[Black "Johansson, Roy"]
[Result "1-0"]
[TimeControl "15 minutes + 5 seconds per move from move one (Round 1 - 4) / 90 minutes + 30 seconds per move from move one (Round 5 - 8)"]
[WhiteTitle "CM"]
[WhiteFideId "2309157"]
[BlackFideId "1745972"]
[WhiteElo "2255"]
[BlackElo "1976"]

1. e4 {[%clk 01:30:56]} {[%emt 00:00:03]} e6 {[%clk 01:30:54]} {[%emt
00:00:07]} 2. d3 {[%clk 01:31:19]} {[%emt 00:00:07]} c5 {[%clk 01:30:59]}
{[%emt 00:00:24]} 3. Nf3 {[%clk 01:31:36]} {[%emt 00:00:13]} Nc6 {[%clk
01:31:21]} {[%emt 00:00:08]} 4. g3 {[%clk 01:31:51]} {[%emt 00:00:15]} d6
{[%clk 01:31:39]} {[%emt 00:00:13]} 5. Bg2 {[%clk 01:32:16]} {[%emt 00:00:05]}
g6 {[%clk 01:32:01]} {[%emt 00:00:07]} 6. O-O {[%clk 01:32:40]} {[%emt
00:00:06]} Bg7 {[%clk 01:32:26]} {[%emt 00:00:06]} 7. c3 {[%clk 01:32:56]}
{[%emt 00:00:13]} Nge7 {[%clk 01:32:22]} {[%emt 00:00:34]} 8. d4 {[%clk
01:30:54]} {[%emt 00:02:31]} cxd4 {[%clk 01:30:41]} {[%emt 00:02:12]} 9. cxd4
{[%clk 01:31:16]} {[%emt 00:00:08]} d5 {[%clk 01:29:37]} {[%emt 00:01:34]} 10.
e5 {[%clk 01:28:39]} {[%emt 00:03:08]} O-O {[%clk 01:29:08]} {[%emt 00:00:59]}
11. Nc3 {[%clk 01:24:41]} {[%emt 00:04:29]} Qb6 {[%clk 01:27:51]} {[%emt
00:01:47]} 12. b3 {[%clk 01:20:17]} {[%emt 00:04:54]} Bd7 {[%clk 01:26:05]}
{[%emt 00:02:16]} 13. Na4 {[%clk 01:19:26]} {[%emt 00:01:20]} Qd8 {[%clk
01:25:40]} {[%emt 00:00:55]} 14. h4 {[%clk 01:15:17]} {[%emt 00:04:39]} h6
{[%clk 01:20:52]} {[%emt 00:05:17]} 15. Nc5 {[%clk 01:08:51]} {[%emt 00:06:56]}
Bc8 {[%clk 01:20:32]} {[%emt 00:00:50]} 16. Qd2 {[%clk 01:00:48]} {[%emt
00:08:34]} b6 {[%clk 01:19:15]} {[%emt 00:01:46]} 17. Nd3 {[%clk 00:58:35]}
{[%emt 00:02:42]} a5 {[%clk 01:15:45]} {[%emt 00:04:01]} 18. Ba3 {[%clk
00:55:14]} {[%emt 00:03:51]} Ba6 {[%clk 01:14:57]} {[%emt 00:01:18]} 19. Rfc1
{[%clk 00:54:44]} {[%emt 00:01:00]} Rc8 {[%clk 01:13:22]} {[%emt 00:02:05]} 20.
Rc2 {[%clk 00:50:05]} {[%emt 00:05:09]} Qd7 {[%clk 01:09:08]} {[%emt 00:04:44]}
21. Bf1 {[%clk 00:41:23]} {[%emt 00:09:13]} Qa7 {[%clk 01:07:14]} {[%emt
00:02:24]} 22. Rac1 {[%clk 00:37:49]} {[%emt 00:04:04]} Rfe8 {[%clk 01:04:13]}
{[%emt 00:03:31]} 23. Nb2 {[%clk 00:34:09]} {[%emt 00:04:09]} Bxf1 {[%clk
01:03:36]} {[%emt 00:01:07]} 24. Kxf1 {[%clk 00:34:33]} {[%emt 00:00:06]} Qa6+
{[%clk 01:01:31]} {[%emt 00:02:36]} 25. Qe2 {[%clk 00:32:21]} {[%emt 00:02:42]}
Qb7 {[%clk 01:01:07]} {[%emt 00:00:53]} 26. Na4 {[%clk 00:29:45]} {[%emt
00:03:06]} Nf5 {[%clk 01:00:19]} {[%emt 00:01:19]} 27. Bb2 {[%clk 00:23:12]}
{[%emt 00:07:03]} Na7 {[%clk 00:57:32]} {[%emt 00:03:18]} 28. Rxc8 {[%clk
00:19:13]} {[%emt 00:04:29]} Rxc8 {[%clk 00:57:53]} {[%emt 00:00:09]} 29. Rxc8+
{[%clk 00:19:36]} {[%emt 00:00:06]} Nxc8 {[%clk 00:58:11]} {[%emt 00:00:12]} 30.
Qb5 {[%clk 00:19:23]} {[%emt 00:00:42]} Bf8 {[%clk 00:57:07]} {[%emt 00:01:34]}
31. Nc5 {[%clk 00:16:25]} {[%emt 00:03:28]} Qc7 {[%clk 00:55:22]} {[%emt
00:02:15]} 32. Nd7 {[%clk 00:16:39]} {[%emt 00:00:17]} Be7 {[%clk 00:54:45]}
{[%emt 00:01:06]} 33. Nf6+ {[%clk 00:12:27]} {[%emt 00:04:42]} Bxf6 {[%clk
00:54:12]} {[%emt 00:01:04]} 34. Qe8+ {[%clk 00:12:51]} {[%emt 00:00:05]} Kg7
{[%clk 00:52:59]} {[%emt 00:01:43]} 35. exf6+ {[%clk 00:13:11]} {[%emt
00:00:10]} Kxf6 {[%clk 00:52:39]} {[%emt 00:00:49]} 36. Ne5 {[%clk 00:13:11]}
{[%emt 00:00:31]} Ncd6 {[%clk 00:51:48]} {[%emt 00:01:21]} 37. Nd7+ {[%clk
00:13:22]} {[%emt 00:00:19]} Kg7 {[%clk 00:51:31]} {[%emt 00:00:46]} 38. Qf8+
{[%clk 00:13:46]} {[%emt 00:00:06]} Kh7 {[%clk 00:51:50]} {[%emt 00:00:11]} 39.
Nf6# {[%emt 00:00:06]} 1-0

[Event "SS Manhem Chess Week 2019 Goteborg Open"]
[Site "Molnlycke kulturhus, Biblioteksgatan 2, Molnlycke, Sweden"]
[Date "2019.08.17"]
[Round "5.12"]
[White "Ask, Josef"]
[Black "Carlfors, Viktor"]
[Result "1-0"]
[TimeControl "15 minutes + 5 seconds per move from move one (Round 1 - 4) / 90 minutes + 30 seconds per move from move one (Round 5 - 8)"]
[WhiteTitle "FM"]
[WhiteFideId "1704583"]
[BlackFideId "1740725"]
[WhiteElo "2136"]
[BlackElo "1820"]

1. e4 {[%clk 01:17:15]} {[%emt 00:10:13]} c6 {[%clk 01:30:54]} {[%emt
00:00:07]} 2. d4 {[%clk 01:17:27]} {[%emt 00:00:19]} d5 {[%clk 01:31:18]}
{[%emt 00:00:06]} 3. exd5 {[%clk 01:17:41]} {[%emt 00:00:16]} cxd5 {[%clk
01:31:42]} {[%emt 00:00:06]} 4. c4 {[%clk 01:18:07]} {[%emt 00:00:04]} Nf6
{[%clk 01:32:04]} {[%emt 00:00:07]} 5. Nc3 {[%clk 01:18:30]} {[%emt 00:00:07]}
Nc6 {[%clk 01:32:22]} {[%emt 00:00:12]} 6. Bg5 {[%clk 01:18:43]} {[%emt
00:00:17]} dxc4 {[%clk 01:27:25]} {[%emt 00:05:27]} 7. d5 {[%clk 01:18:43]}
{[%emt 00:00:29]} Ne5 {[%clk 01:26:02]} {[%emt 00:01:53]} 8. Qd4 {[%clk
01:18:54]} {[%emt 00:00:19]} Nd3+ {[%clk 01:25:52]} {[%emt 00:00:39]} 9. Bxd3
{[%clk 01:19:09]} {[%emt 00:00:16]} cxd3 {[%clk 01:26:13]} {[%emt 00:00:09]} 10.
Nf3 {[%clk 01:18:49]} {[%emt 00:00:50]} d2+ {[%clk 01:16:14]} {[%emt 00:10:29]}
11. Kxd2 {[%clk 01:16:25]} {[%emt 00:02:53]} a6 {[%clk 01:11:41]} {[%emt
00:05:03]} 12. Rhe1 {[%clk 01:15:37]} {[%emt 00:01:17]} Bf5 {[%clk 01:09:30]}
{[%emt 00:02:42]} 13. Bxf6 {[%clk 01:13:37]} {[%emt 00:02:30]} gxf6 {[%clk
01:04:28]} {[%emt 00:05:33]} 14. Qxf6 {[%clk 01:13:30]} {[%emt 00:00:38]} Rg8
{[%clk 01:04:48]} {[%emt 00:00:09]} 15. Qxf5 {[%clk 01:13:12]} {[%emt
00:00:49]} Qb6 {[%clk 01:05:10]} {[%emt 00:00:08]} 16. Ne5 {[%clk 01:10:14]}
{[%emt 00:03:28]} Bh6+ {[%clk 00:52:11]} {[%emt 00:13:28]} 17. Kc2 {[%clk
01:03:00]} {[%emt 00:07:44]} Rxg2 {[%clk 00:52:04]} {[%emt 00:00:37]} 18. Re2
{[%clk 00:59:48]} {[%emt 00:03:42]} Rg7 {[%clk 00:45:40]} {[%emt 00:06:54]} 19.
Rae1 {[%clk 00:58:13]} {[%emt 00:02:04]} Bg5 {[%clk 00:44:28]} {[%emt
00:01:43]} 20. Qd7+ {[%clk 00:49:52]} {[%emt 00:08:51]} Kf8 {[%clk 00:44:36]}
{[%emt 00:00:22]} 21. d6 {[%clk 00:46:02]} {[%emt 00:04:20]} Rd8 {[%clk
00:41:45]} {[%emt 00:03:21]} 22. dxe7+ {[%clk 00:40:17]} {[%emt 00:06:17]} Bxe7
{[%clk 00:41:53]} {[%emt 00:00:22]} 23. Qf5 {[%clk 00:38:40]} {[%emt 00:02:07]}
Qc7 {[%clk 00:40:20]} {[%emt 00:02:03]} 24. Kb1 {[%clk 00:37:05]} {[%emt
00:02:05]} f6 {[%clk 00:35:58]} {[%emt 00:04:52]} 25. Ng4 {[%clk 00:36:39]}
{[%emt 00:00:55]} Rf7 {[%clk 00:24:12]} {[%emt 00:12:17]} 26. Nd5 {[%clk
00:33:33]} {[%emt 00:03:37]} Qd7 {[%clk 00:17:38]} {[%emt 00:07:04]} 27. Nxe7
{[%clk 00:31:34]} {[%emt 00:02:30]} Rxe7 {[%clk 00:16:59]} {[%emt 00:01:09]} 28.
Qxf6+ {[%clk 00:31:49]} {[%emt 00:00:15]} Kg8 {[%clk 00:16:15]} {[%emt
00:01:13]} 29. Nh6# {[%emt 00:00:09]} 1-0

[Event "SS Manhem Chess Week 2019 Goteborg Open"]
[Site "Molnlycke kulturhus, Biblioteksgatan 2, Molnlycke, Sweden"]
[Date "2019.08.17"]
[Round "5.13"]
[White "Andersson, Lars"]
[Black "Lillskog, Viggo"]
[Result "1-0"]
[TimeControl "15 minutes + 5 seconds per move from move one (Round 1 - 4) / 90 minutes + 30 seconds per move from move one (Round 5 - 8)"]
[WhiteFideId "1706772"]
[BlackFideId "1754114"]
[WhiteElo "2003"]
[BlackElo "1608"]

1. d4 {[%clk 01:30:57]} {[%emt 00:58:33]} Nf6 {[%clk 01:30:59]} 2. Bf4 {[%clk
01:30:57]} d5 {[%clk 01:30:59]} 3. e3 {[%clk 01:30:57]} c5 {[%clk 01:31:00]}
{[%emt 44:00:45]} 4. c3 {[%clk 01:32:07]} {[%emt 00:00:07]} Nc6 {[%clk
01:31:17]} {[%emt 00:00:13]} 5. Nd2 {[%clk 01:32:09]} {[%emt 00:00:28]} Bf5
{[%clk 01:30:44]} {[%emt 00:01:03]} 6. Qb3 {[%clk 01:32:04]} {[%emt 00:00:35]}
Qb6 {[%clk 01:29:42]} {[%emt 00:01:32]} 7. dxc5 {[%clk 01:31:21]} {[%emt
00:01:14]} Qxb3 {[%clk 01:28:42]} {[%emt 00:01:29]} 8. axb3 {[%clk 01:31:49]}
{[%emt 00:00:02]} e5 {[%clk 01:26:06]} {[%emt 00:03:06]} 9. Bg3 {[%clk
01:32:05]} {[%emt 00:00:13]} Bxc5 {[%clk 01:25:23]} {[%emt 00:01:14]} 10. b4
{[%clk 01:22:00]} {[%emt 00:10:35]} Bd6 {[%clk 01:23:48]} {[%emt 00:02:04]} 11.
Ngf3 {[%clk 01:22:02]} {[%emt 00:00:28]} Nd7 {[%clk 01:20:58]} {[%emt
00:03:20]} 12. Be2 {[%clk 01:16:05]} {[%emt 00:06:27]} O-O {[%clk 01:18:30]}
{[%emt 00:02:57]} 13. O-O {[%clk 01:15:59]} {[%emt 00:00:36]} Rfe8 {[%clk
01:10:52]} {[%emt 00:08:08]} 14. Rfd1 {[%clk 01:08:04]} {[%emt 00:08:26]} Bc2
{[%clk 01:09:51]} {[%emt 00:01:30]} 15. Re1 {[%clk 01:05:04]} {[%emt 00:03:31]}
Bg6 {[%clk 01:09:31]} {[%emt 00:00:49]} 16. Nh4 {[%clk 01:00:18]} {[%emt
00:05:17]} a6 {[%clk 01:05:43]} {[%emt 00:04:18]} 17. Nxg6 {[%clk 00:56:05]}
{[%emt 00:04:42]} hxg6 {[%clk 01:06:05]} {[%emt 00:00:09]} 18. b5 {[%clk
00:42:47]} {[%emt 00:13:48]} axb5 {[%clk 01:05:20]} {[%emt 00:01:15]} 19. Bxb5
{[%clk 00:43:05]} {[%emt 00:00:13]} Nb6 {[%clk 00:58:37]} {[%emt 00:07:12]} 20.
e4 {[%clk 00:26:48]} {[%emt 00:16:47]} dxe4 {[%clk 00:45:39]} {[%emt 00:13:28]}
21. Nxe4 {[%clk 00:26:52]} {[%emt 00:00:26]} Bf8 {[%clk 00:41:55]} {[%emt
00:04:12]} 22. f3 {[%clk 00:22:12]} {[%emt 00:05:10]} f5 {[%clk 00:39:44]}
{[%emt 00:02:41]} 23. Bf2 {[%clk 00:22:10]} {[%emt 00:00:33]} fxe4 {[%clk
00:32:02]} {[%emt 00:08:12]} 24. Bxb6 {[%clk 00:22:32]} {[%emt 00:00:08]} Rxa1
{[%clk 00:31:38]} {[%emt 00:00:53]} 25. Rxa1 {[%clk 00:23:00]} {[%emt
00:00:01]} exf3 {[%clk 00:31:14]} {[%emt 00:00:54]} 26. gxf3 {[%clk 00:23:19]}
{[%emt 00:00:11]} Kf7 {[%clk 00:30:35]} {[%emt 00:01:09]} 27. Kf2 {[%clk
00:21:13]} {[%emt 00:02:37]} Be7 {[%clk 00:30:20]} {[%emt 00:00:45]} 28. Rd1
{[%clk 00:17:58]} {[%emt 00:03:44]} Bd8 {[%clk 00:28:24]} {[%emt 00:02:26]} 29.
Rd7+ {[%clk 00:17:10]} {[%emt 00:01:18]} Ke6 {[%clk 00:28:40]} {[%emt
00:00:10]} 30. Rxb7 {[%clk 00:16:06]} {[%emt 00:01:38]} Re7 {[%clk 00:28:03]}
{[%emt 00:01:07]} 31. Rxe7+ {[%clk 00:15:40]} {[%emt 00:00:57]} Kxe7 {[%clk
00:28:20]} {[%emt 00:00:13]} 32. Bc5+ {[%clk 00:15:46]} {[%emt 00:00:24]} Kd7
{[%clk 00:28:32]} {[%emt 00:00:16]} 33. Ke3 {[%clk 00:15:35]} {[%emt 00:00:42]}
Kc7 {[%clk 00:27:50]} {[%emt 00:01:10]} 34. Ke4 {[%clk 00:15:31]} {[%emt
00:00:36]} Bf6 {[%clk 00:27:45]} {[%emt 00:00:35]} 35. Bxc6 {[%clk 00:14:30]}
{[%emt 00:01:32]} Kxc6 {[%clk 00:27:49]} {[%emt 00:00:26]} 36. Bf8 {[%clk
00:14:46]} {[%emt 00:00:13]} Kb5 {[%clk 00:27:25]} {[%emt 00:00:53]} 37. b3
{[%clk 00:15:07]} {[%emt 00:00:11]} Kc6 {[%clk 00:27:37]} {[%emt 00:00:17]} 38.
c4 {[%clk 00:15:57]} {[%emt 00:00:09]} Kc7 {[%clk 00:28:01]} {[%emt 00:00:36]}
39. b4 {[%clk 00:16:12]} {[%emt 00:00:15]} Kc6 {[%clk 00:27:55]} {[%emt
00:00:37]} 40. b5+ {[%clk 00:16:34]} {[%emt 00:00:08]} Kb6 {[%clk 00:28:09]}
{[%emt 00:00:16]} 41. Kd5 {[%clk 00:16:44]} {[%emt 00:00:20]} g5 {[%clk
00:28:06]} {[%emt 00:00:33]} 42. h3 {[%clk 00:16:40]} {[%emt 00:00:34]} g6
{[%clk 00:28:01]} {[%emt 00:00:36]} 43. Bd6 {[%clk 00:16:48]} {[%emt 00:00:22]}
1-0

[Event "SS Manhem Chess Week 2019 Goteborg Open"]
[Site "Molnlycke kulturhus, Biblioteksgatan 2, Molnlycke, Sweden"]
[Date "2019.08.17"]
[Round "5.14"]
[White "Welin, Mats"]
[Black "Andersson, Kjell-Ake"]
[Result "1-0"]
[TimeControl "15 minutes + 5 seconds per move from move one (Round 1 - 4) / 90 minutes + 30 seconds per move from move one (Round 5 - 8)"]
[WhiteTitle "FM"]
[WhiteFideId "1705180"]
[BlackFideId "1713825"]
[WhiteElo "2310"]
[BlackElo "1922"]

1. e4 {[%clk 01:30:56]} {[%emt 00:00:03]} e6 {[%clk 01:30:42]} {[%emt
00:00:18]} 2. d4 {[%clk 01:31:16]} {[%emt 00:00:09]} d5 {[%clk 01:31:02]}
{[%emt 00:00:10]} 3. Nc3 {[%clk 01:31:35]} {[%emt 00:00:12]} Bb4 {[%clk
01:31:08]} {[%emt 00:00:24]} 4. e5 {[%clk 01:31:41]} {[%emt 00:00:24]} c5
{[%clk 01:31:14]} {[%emt 00:00:24]} 5. a3 {[%clk 01:31:48]} {[%emt 00:00:23]}
Bxc3+ {[%clk 01:31:35]} {[%emt 00:00:08]} 6. bxc3 {[%clk 01:32:08]} {[%emt
00:00:11]} Qc7 {[%clk 01:31:53]} {[%emt 00:00:11]} 7. Qg4 {[%clk 01:31:57]}
{[%emt 00:00:42]} f5 {[%clk 01:31:32]} {[%emt 00:00:50]} 8. Qh5+ {[%clk
01:30:53]} {[%emt 00:01:34]} Qf7 {[%clk 01:28:40]} {[%emt 00:03:22]} 9. Qd1
{[%clk 01:30:02]} {[%emt 00:01:22]} Qc7 {[%clk 01:28:10]} {[%emt 00:01:00]} 10.
Nf3 {[%clk 01:29:51]} {[%emt 00:00:41]} Ne7 {[%clk 01:27:16]} {[%emt 00:01:22]}
11. a4 {[%clk 01:27:19]} {[%emt 00:03:03]} Nbc6 {[%clk 01:21:38]} {[%emt
00:06:04]} 12. Ba3 {[%clk 01:19:38]} {[%emt 00:08:16]} b6 {[%clk 01:19:29]}
{[%emt 00:02:38]} 13. Bb5 {[%clk 01:14:11]} {[%emt 00:05:57]} a6 {[%clk
01:14:43]} {[%emt 00:05:16]} 14. Bd3 {[%clk 01:10:03]} {[%emt 00:04:38]} O-O
{[%clk 01:09:14]} {[%emt 00:05:58]} 15. O-O {[%clk 01:03:35]} {[%emt 00:07:00]}
Nd8 {[%clk 01:05:57]} {[%emt 00:03:46]} 16. a5 {[%clk 01:00:38]} {[%emt
00:03:28]} bxa5 {[%clk 01:03:13]} {[%emt 00:03:14]} 17. Bxc5 {[%clk 00:59:12]}
{[%emt 00:01:56]} Nb7 {[%clk 01:03:03]} {[%emt 00:00:40]} 18. Ba3 {[%clk
00:56:59]} {[%emt 00:02:43]} Re8 {[%clk 00:54:17]} {[%emt 00:09:14]} 19. Ng5
{[%clk 00:51:24]} {[%emt 00:06:07]} h6 {[%clk 00:52:06]} {[%emt 00:02:40]} 20.
Qh5 {[%clk 00:46:42]} {[%emt 00:05:12]} Rf8 {[%clk 00:51:26]} {[%emt 00:01:10]}
21. Nf3 {[%clk 00:46:20]} {[%emt 00:00:53]} Rf7 {[%clk 00:50:20]} {[%emt
00:01:34]} 22. Qh4 {[%clk 00:41:34]} {[%emt 00:05:19]} Ng6 {[%clk 00:48:18]}
{[%emt 00:02:30]} 23. Qg3 {[%clk 00:41:33]} {[%emt 00:00:33]} Nf8 {[%clk
00:47:25]} {[%emt 00:01:23]} 24. Bc1 {[%clk 00:38:19]} {[%emt 00:03:44]} Kh8
{[%clk 00:43:56]} {[%emt 00:03:54]} 25. Bd2 {[%clk 00:35:33]} {[%emt 00:03:20]}
Bd7 {[%clk 00:42:27]} {[%emt 00:01:59]} 26. h4 {[%clk 00:34:37]} {[%emt
00:01:26]} a4 {[%clk 00:39:27]} {[%emt 00:03:30]} 27. Rfb1 {[%clk 00:28:54]}
{[%emt 00:06:13]} Na5 {[%clk 00:36:42]} {[%emt 00:03:14]} 28. Kh1 {[%clk
00:28:49]} {[%emt 00:00:36]} Nc4 {[%clk 00:34:58]} {[%emt 00:02:14]} 29. Bc1
{[%clk 00:28:31]} {[%emt 00:00:48]} Bb5 {[%clk 00:33:04]} {[%emt 00:02:23]} 30.
Ng1 {[%clk 00:28:32]} {[%emt 00:00:30]} Nd7 {[%clk 00:31:50]} {[%emt 00:01:44]}
31. Ne2 {[%clk 00:28:25]} {[%emt 00:00:37]} Ndb6 {[%clk 00:29:57]} {[%emt
00:02:22]} 32. Nf4 {[%clk 00:25:57]} {[%emt 00:02:58]} Qd7 {[%clk 00:26:51]}
{[%emt 00:03:33]} 33. Qg6 {[%clk 00:25:48]} {[%emt 00:00:42]} Re7 {[%clk
00:26:00]} {[%emt 00:01:20]} 34. g4 {[%clk 00:24:59]} {[%emt 00:01:20]} 1-0